[Event "GrandPrix_29.05"]
[Site "Chess.com"]
[Date "2020.05.29"]
[Round "6"]
[White "ENajer77"]
[Black "GrishaTheChamp"]
[Result "1-0"]
[WhiteElo "2222"]
[BlackElo "2173"]
[TimeControl "600+2"]
[EndTime "11:55:28 PDT"]
[Termination "ENajer77 won by checkmate"]

1. e4 {[%clk 0:10:01.9]} 1... c5 {[%clk 0:09:59.6]} 2. Nf3 {[%clk 0:09:58.9]}
2... d6 {[%clk 0:09:59.3]} 3. d4 {[%clk 0:09:50.5]} 3... cxd4 {[%clk 0:09:55.9]}
4. Nxd4 {[%clk 0:09:51.8]} 4... Nf6 {[%clk 0:09:55.1]} 5. Nc3 {[%clk 0:09:51]}
5... Nc6 {[%clk 0:09:56.4]} 6. Bg5 {[%clk 0:09:50.3]} 6... e6 {[%clk 0:09:54.2]}
7. Qd2 {[%clk 0:09:50.6]} 7... a6 {[%clk 0:09:55.4]} 8. O-O-O {[%clk 0:09:50.2]}
8... h6 {[%clk 0:09:56.8]} 9. Nxc6 {[%clk 0:09:50.7]} 9... bxc6 {[%clk
0:09:57.6]} 10. Bf4 {[%clk 0:09:51.7]} 10... d5 {[%clk 0:09:58.4]} 11. Qe3
{[%clk 0:09:52.9]} 11... Bb4 {[%clk 0:09:58.2]} 12. Be2 {[%clk 0:09:49]} 12...
O-O {[%clk 0:09:51.4]} 13. e5 {[%clk 0:09:42.7]} 13... Nh7 {[%clk 0:09:52.1]}
14. a3 {[%clk 0:09:38]} 14... Ba5 {[%clk 0:09:47.8]} 15. Ne4 {[%clk 0:09:29.9]}
15... f5 {[%clk 0:09:20.2]} 16. exf6 {[%clk 0:09:22.4]} 16... Nxf6 {[%clk
0:09:20.4]} 17. Nd6 {[%clk 0:07:22.3]} 17... Bd7 {[%clk 0:09:04.4]} 18. Nb7
{[%clk 0:07:19.2]} 18... Qb6 {[%clk 0:08:57.1]} 19. Nxa5 {[%clk 0:07:15.5]}
19... Qxa5 {[%clk 0:08:56.7]} 20. Bd6 {[%clk 0:07:05.4]} 20... Rf7 {[%clk
0:08:49.8]} 21. f3 {[%clk 0:07:02.5]} 21... Ne8 {[%clk 0:08:14.1]} 22. Qc5
{[%clk 0:06:23.3]} 22... Qxc5 {[%clk 0:08:04.9]} 23. Bxc5 {[%clk 0:06:23.9]}
23... e5 {[%clk 0:08:06.2]} 24. Rhe1 {[%clk 0:06:21.8]} 24... Bf5 {[%clk
0:06:12.5]} 25. Bd3 {[%clk 0:06:06.5]} 25... Bxd3 {[%clk 0:06:07.1]} 26. Rxd3
{[%clk 0:06:06.7]} 26... Nf6 {[%clk 0:06:06]} 27. Rc3 {[%clk 0:05:35.7]} 27...
e4 {[%clk 0:05:58.7]} 28. Bd4 {[%clk 0:05:36.2]} 28... exf3 {[%clk 0:05:57.4]}
29. gxf3 {[%clk 0:05:35.3]} 29... Nd7 {[%clk 0:05:35.7]} 30. Rxc6 {[%clk
0:05:29.2]} 30... Rxf3 {[%clk 0:05:34.3]} 31. Rg6 {[%clk 0:05:16.1]} 31... Nf6
{[%clk 0:04:09.3]} 32. Reg1 {[%clk 0:05:00.3]} 32... Ne8 {[%clk 0:03:53.9]} 33.
Bxg7 {[%clk 0:04:37.3]} 33... Nxg7 {[%clk 0:03:45.8]} 34. Rxg7+ {[%clk
0:04:38.2]} 34... Kh8 {[%clk 0:03:47.4]} 35. Rd7 {[%clk 0:04:33.9]} 35... Rf2
{[%clk 0:03:39.6]} 36. Rxd5 {[%clk 0:04:21.4]} 36... Rxh2 {[%clk 0:03:39.7]} 37.
Rc5 {[%clk 0:04:16.1]} 37... Re8 {[%clk 0:03:22.8]} 38. b4 {[%clk 0:04:13.8]}
38... h5 {[%clk 0:03:19.3]} 39. Rg6 {[%clk 0:04:07.6]} 39... h4 {[%clk
0:03:11.5]} 40. Rh5# {[%clk 0:04:02.8]} 1-0

[Event "GrandPrix_29.05"]
[Site "Chess.com"]
[Date "2020.05.29"]
[Round "6"]
[White "VojtechPlat"]
[Black "Pash2015"]
[Result "0-1"]
[WhiteElo "2276"]
[BlackElo "2240"]
[TimeControl "600+2"]
[EndTime "11:55:47 PDT"]
[Termination "Pash2015 won by resignation"]

1. e4 {[%clk 0:09:59]} 1... c5 {[%clk 0:10:00.6]} 2. Nf3 {[%clk 0:09:59.6]} 2...
a6 {[%clk 0:10:00.7]} 3. c3 {[%clk 0:10:00.3]} 3... e6 {[%clk 0:10:01.3]} 4. d4
{[%clk 0:10:00.8]} 4... cxd4 {[%clk 0:10:03.2]} 5. cxd4 {[%clk 0:10:01.8]} 5...
d5 {[%clk 0:10:04.8]} 6. exd5 {[%clk 0:10:02.1]} 6... Bb4+ {[%clk 0:10:03.7]} 7.
Nc3 {[%clk 0:10:00.8]} 7... exd5 {[%clk 0:10:04.2]} 8. Ne5 {[%clk 0:09:44.4]}
8... Nf6 {[%clk 0:09:54]} 9. Qa4+ {[%clk 0:09:42.8]} 9... Nc6 {[%clk 0:09:51]}
10. Nxc6 {[%clk 0:09:43.4]} 10... Bxc3+ {[%clk 0:09:50]} 11. bxc3 {[%clk
0:09:44.2]} 11... bxc6 {[%clk 0:09:51]} 12. Qxc6+ {[%clk 0:09:41.6]} 12... Bd7
{[%clk 0:09:51.8]} 13. Qd6 {[%clk 0:09:42.3]} 13... Qa5 {[%clk 0:09:40.3]} 14.
Bd2 {[%clk 0:08:49.6]} 14... Ne4 {[%clk 0:09:31.4]} 15. Qb4 {[%clk 0:08:49.4]}
15... Qc7 {[%clk 0:09:28.4]} 16. Bd3 {[%clk 0:07:46.8]} 16... Rb8 {[%clk
0:09:18.7]} 17. Qa3 {[%clk 0:07:47.2]} 17... Bb5 {[%clk 0:09:07.6]} 18. Bxb5+
{[%clk 0:07:34.9]} 18... Rxb5 {[%clk 0:09:09.5]} 19. Qxa6 {[%clk 0:07:08.3]}
19... Qc4 {[%clk 0:07:38.4]} 20. Qa3 {[%clk 0:03:59.1]} 20... Qd3 {[%clk
0:07:25.5]} 21. Rd1 {[%clk 0:03:58.7]} 21... Nxd2 {[%clk 0:07:23.1]} 22. Qc1
{[%clk 0:03:59.2]} 22... Kd8 {[%clk 0:06:59.2]} 23. Rxd2 {[%clk 0:03:57.3]}
23... Qe4+ {[%clk 0:05:56.6]} 24. Re2 {[%clk 0:03:57.6]} 24... Rb1 {[%clk
0:05:30.1]} 25. Rxe4 {[%clk 0:03:57.9]} 25... Rxc1+ {[%clk 0:05:30.6]} 26. Kd2
{[%clk 0:03:59.1]} 26... Rxh1 {[%clk 0:05:31.3]} 27. Re5 {[%clk 0:04:00.5]}
27... Rxh2 {[%clk 0:05:24.8]} 28. Rxd5+ {[%clk 0:04:01.7]} 28... Ke7 {[%clk
0:05:25.1]} 29. a4 {[%clk 0:03:50.8]} 29... Ra8 {[%clk 0:05:24]} 30. a5 {[%clk
0:03:51.7]} 30... Rxg2 {[%clk 0:05:24.6]} 31. Ke2 {[%clk 0:03:53]} 31... Rg6
{[%clk 0:05:24.6]} 32. Rb5 {[%clk 0:03:49.8]} 32... Rga6 {[%clk 0:05:24.4]} 33.
c4 {[%clk 0:03:51.2]} 33... Rxa5 {[%clk 0:05:24.8]} 34. Rb7+ {[%clk 0:03:52.4]}
34... Kf6 {[%clk 0:05:24.7]} 35. d5 {[%clk 0:03:53.2]} 35... Ra3 {[%clk
0:05:20.2]} 36. c5 {[%clk 0:03:52.6]} 36... Rc3 {[%clk 0:05:18.6]} 37. c6 {[%clk
0:03:54]} 37... Ra5 {[%clk 0:05:11]} 38. Rd7 {[%clk 0:03:54.3]} 38... Ra2+
{[%clk 0:04:24.5]} 39. Kf1 {[%clk 0:03:53.5]} 39... Rcc2 {[%clk 0:03:28.4]} 40.
Kg2 {[%clk 0:03:50.2]} 40... Rxf2+ {[%clk 0:03:28.6]} 41. Kg3 {[%clk 0:03:51.6]}
41... Rfc2 {[%clk 0:03:13.5]} 42. c7 {[%clk 0:03:52.7]} 42... Rc3+ {[%clk
0:03:11.3]} 0-1

[Event "GrandPrix_29.05"]
[Site "Chess.com"]
[Date "2020.05.29"]
[Round "6"]
[White "lilleper1"]
[Black "AlexPapasimakopoulos"]
[Result "1-0"]
[WhiteElo "2395"]
[BlackElo "2334"]
[TimeControl "600+2"]
[EndTime "11:55:53 PDT"]
[Termination "lilleper1 won by resignation"]

1. d4 {[%clk 0:10:00.8]} 1... Nf6 {[%clk 0:09:56.7]} 2. c4 {[%clk 0:10:01.5]}
2... e6 {[%clk 0:09:57.6]} 3. Nf3 {[%clk 0:10:02.4]} 3... Bb4+ {[%clk
0:09:57.8]} 4. Bd2 {[%clk 0:10:02.7]} 4... Qe7 {[%clk 0:09:58.6]} 5. g3 {[%clk
0:10:02.8]} 5... Nc6 {[%clk 0:09:59.8]} 6. Bg2 {[%clk 0:10:02.8]} 6... Bxd2+
{[%clk 0:10:00.8]} 7. Qxd2 {[%clk 0:10:03.5]} 7... Ne4 {[%clk 0:10:01.6]} 8. Qc2
{[%clk 0:10:04]} 8... Qb4+ {[%clk 0:10:02.9]} 9. Kf1 {[%clk 0:10:04.7]} 9... f5
{[%clk 0:10:00.2]} 10. a3 {[%clk 0:09:58.1]} 10... Qe7 {[%clk 0:09:59.4]} 11.
Nc3 {[%clk 0:09:54.5]} 11... Nxc3 {[%clk 0:09:56.9]} 12. Qxc3 {[%clk 0:09:55]}
12... O-O {[%clk 0:09:55]} 13. b4 {[%clk 0:09:36.5]} 13... Nd8 {[%clk
0:09:48.9]} 14. h4 {[%clk 0:09:32.7]} 14... Nf7 {[%clk 0:09:49.1]} 15. Re1
{[%clk 0:08:50.4]} 15... Nh6 {[%clk 0:09:43]} 16. Bh3 {[%clk 0:08:19.2]} 16...
d6 {[%clk 0:09:38.3]} 17. Kg2 {[%clk 0:08:16.6]} 17... b6 {[%clk 0:09:23.6]} 18.
Ng5 {[%clk 0:07:51.9]} 18... Bb7+ {[%clk 0:09:15.5]} 19. f3 {[%clk 0:07:52.9]}
19... Ng4 {[%clk 0:08:54.5]} 20. e4 {[%clk 0:06:36]} 20... h6 {[%clk 0:08:44.7]}
21. exf5 {[%clk 0:06:04.2]} 21... Ne5 {[%clk 0:07:56]} 22. dxe5 {[%clk
0:05:47.3]} 22... hxg5 {[%clk 0:07:56.8]} 23. exd6 {[%clk 0:05:36.9]} 23... Qxd6
{[%clk 0:07:54.2]} 24. Rxe6 {[%clk 0:05:26.9]} 24... Qd8 {[%clk 0:07:46.9]} 25.
Rg6 {[%clk 0:05:11.6]} 25... Qe7 {[%clk 0:07:42.8]} 26. Re1 {[%clk 0:04:58.5]}
26... Qf7 {[%clk 0:07:36]} 27. hxg5 {[%clk 0:04:49.1]} 27... Rae8 {[%clk
0:07:35.7]} 28. Rge6 {[%clk 0:04:38.7]} 28... Rxe6 {[%clk 0:07:21.3]} 29. Rxe6
{[%clk 0:04:39.2]} 29... Bc8 {[%clk 0:07:20.9]} 30. g6 {[%clk 0:04:11.6]} 30...
Qd7 {[%clk 0:07:15.9]} 31. Bg4 {[%clk 0:03:56.3]} 31... Qd8 {[%clk 0:07:02.2]}
32. Re5 {[%clk 0:03:51.7]} 32... Bb7 {[%clk 0:06:50.9]} 33. Qe3 {[%clk
0:03:33.9]} 33... Bc6 {[%clk 0:06:30.9]} 34. Re7 {[%clk 0:03:27.9]} 34... Re8
{[%clk 0:06:24]} 35. Rxe8+ {[%clk 0:03:05.1]} 35... Bxe8 {[%clk 0:06:22]} 36.
Qe6+ {[%clk 0:02:53.4]} 36... Kf8 {[%clk 0:06:22.7]} 37. Qe3 {[%clk 0:02:40.7]}
37... Qd1 {[%clk 0:06:19.5]} 38. f6 {[%clk 0:02:21.7]} 38... Qc2+ {[%clk
0:06:19.7]} 39. Kh3 {[%clk 0:02:15.7]} 39... Qxg6 {[%clk 0:05:54.3]} 40. Qe7+
{[%clk 0:02:15.8]} 40... Kg8 {[%clk 0:05:55.6]} 41. Be6+ {[%clk 0:02:15.3]}
41... Kh7 {[%clk 0:05:56.3]} 42. f7 {[%clk 0:01:33.4]} 42... Qh5+ {[%clk
0:05:42.6]} 43. Qh4 {[%clk 0:01:32.2]} 43... Bxf7 {[%clk 0:05:42.4]} 44. Bxf7
{[%clk 0:01:30.7]} 1-0

[Event "GrandPrix_29.05"]
[Site "Chess.com"]
[Date "2020.05.29"]
[Round "6"]
[White "francyIM"]
[Black "Gabrielian_Artur"]
[Result "1-0"]
[WhiteElo "2618"]
[BlackElo "2548"]
[TimeControl "600+2"]
[EndTime "11:55:56 PDT"]
[Termination "francyIM won by resignation"]

1. d4 {[%clk 0:10:01.9]} 1... Nf6 {[%clk 0:10:00.5]} 2. c4 {[%clk 0:10:02.1]}
2... c5 {[%clk 0:10:01]} 3. d5 {[%clk 0:10:01.3]} 3... e6 {[%clk 0:10:01.8]} 4.
Nc3 {[%clk 0:10:01.8]} 4... exd5 {[%clk 0:10:03]} 5. cxd5 {[%clk 0:10:03.7]}
5... d6 {[%clk 0:10:03.9]} 6. e4 {[%clk 0:10:04.8]} 6... g6 {[%clk 0:10:04.9]}
7. f4 {[%clk 0:10:05.7]} 7... Bg7 {[%clk 0:10:04.5]} 8. Bb5+ {[%clk 0:10:06.3]}
8... Nfd7 {[%clk 0:10:05.5]} 9. a4 {[%clk 0:10:07.3]} 9... O-O {[%clk
0:10:06.3]} 10. Nf3 {[%clk 0:10:06.7]} 10... Na6 {[%clk 0:10:07.3]} 11. O-O
{[%clk 0:10:06.3]} 11... Nb4 {[%clk 0:10:08.4]} 12. h3 {[%clk 0:10:07.2]} 12...
a6 {[%clk 0:10:09.2]} 13. Bc4 {[%clk 0:10:07.9]} 13... f5 {[%clk 0:09:47.8]} 14.
e5 {[%clk 0:10:07]} 14... dxe5 {[%clk 0:09:03.2]} 15. d6+ {[%clk 0:10:06.4]}
15... Kh8 {[%clk 0:09:03.8]} 16. Ng5 {[%clk 0:10:07.9]} 16... Nb6 {[%clk
0:08:30.5]} 17. Nf7+ {[%clk 0:10:02]} 17... Rxf7 {[%clk 0:08:31.8]} 18. Bxf7
{[%clk 0:10:03.9]} 18... e4 {[%clk 0:08:33.1]} 19. a5 {[%clk 0:09:59.7]} 19...
Bd4+ {[%clk 0:08:04.6]} 20. Kh2 {[%clk 0:09:57.4]} 20... Nd7 {[%clk 0:07:30.6]}
21. Ne2 {[%clk 0:09:44.2]} 21... Bg7 {[%clk 0:07:21.5]} 22. Be3 {[%clk
0:09:13.7]} 22... Nd3 {[%clk 0:07:21.1]} 23. Qb3 {[%clk 0:09:06.9]} 23... Nf6
{[%clk 0:07:14.9]} 24. Rfd1 {[%clk 0:08:58.1]} 24... Qxd6 {[%clk 0:06:17]} 25.
Bc4 {[%clk 0:08:53.9]} 25... Qe7 {[%clk 0:05:55.4]} 26. Bxd3 {[%clk 0:08:17.6]}
26... exd3 {[%clk 0:05:56.1]} 27. Qxd3 {[%clk 0:08:19.5]} 27... Bd7 {[%clk
0:05:54.3]} 28. Nc3 {[%clk 0:08:15.1]} 28... Bc6 {[%clk 0:05:46.1]} 29. Re1
{[%clk 0:08:07.8]} 29... Ne4 {[%clk 0:05:27.6]} 30. Rad1 {[%clk 0:08:05.3]}
30... Re8 {[%clk 0:05:15.9]} 31. Nxe4 {[%clk 0:07:56]} 31... Bxe4 {[%clk
0:05:05.4]} 32. Qc4 {[%clk 0:07:55.7]} 32... h5 {[%clk 0:04:50.6]} 33. Qxc5
{[%clk 0:07:45.3]} 33... Qxc5 {[%clk 0:04:41.2]} 34. Bxc5 {[%clk 0:07:47.2]}
34... Bxb2 {[%clk 0:04:41.8]} 35. Rd7 {[%clk 0:07:41.9]} 35... Rc8 {[%clk
0:04:33.8]} 36. Re2 {[%clk 0:07:22.9]} 36... Rxc5 {[%clk 0:03:33.3]} 37. Rxb2
{[%clk 0:07:21.4]} 37... Rxa5 {[%clk 0:03:34.5]} 38. Rbd2 {[%clk 0:07:18.4]}
38... Kg8 {[%clk 0:03:27.4]} 39. Kg3 {[%clk 0:07:18.6]} 39... Kf8 {[%clk
0:03:08.9]} 40. Kh4 {[%clk 0:07:17.1]} 40... Rb5 {[%clk 0:02:50.9]} 41. Kg5
{[%clk 0:07:16.8]} 41... a5 {[%clk 0:02:27]} 42. R2d6 {[%clk 0:07:01.5]} 42...
Bc6 {[%clk 0:02:16.2]} 43. Rh7 {[%clk 0:06:57.7]} 43... Rd5 {[%clk 0:02:12]} 44.
Rf6+ {[%clk 0:06:53.9]} 44... Ke8 {[%clk 0:02:08]} 45. Rxg6 {[%clk 0:06:48.3]}
45... Kf8 {[%clk 0:01:56.6]} 46. Rxh5 {[%clk 0:06:18.5]} 46... a4 {[%clk
0:01:52.5]} 47. Rh8+ {[%clk 0:06:18.5]} 47... Ke7 {[%clk 0:01:50.6]} 48. Ra8
{[%clk 0:06:16.1]} 48... Rd2 {[%clk 0:01:44.6]} 49. g4 {[%clk 0:06:13.5]} 49...
Rd3 {[%clk 0:01:35.5]} 50. Rg7+ {[%clk 0:06:12.4]} 50... Ke6 {[%clk 0:01:36.9]}
51. gxf5+ {[%clk 0:06:12.8]} 51... Kd5 {[%clk 0:01:38.3]} 52. Rd8+ {[%clk
0:06:05.8]} 52... Ke4 {[%clk 0:01:39.2]} 53. Re7+ {[%clk 0:06:06.4]} 1-0

[Event "GrandPrix_29.05"]
[Site "Chess.com"]
[Date "2020.05.29"]
[Round "6"]
[White "friesnielsen2302"]
[Black "cantdefyme"]
[Result "1-0"]
[WhiteElo "1839"]
[BlackElo "2002"]
[TimeControl "600+2"]
[EndTime "11:55:58 PDT"]
[Termination "friesnielsen2302 won by resignation"]

1. e4 {[%clk 0:09:44.6]} 1... c5 {[%clk 0:10:00.1]} 2. Nf3 {[%clk 0:09:44.9]}
2... d6 {[%clk 0:10:01.4]} 3. d4 {[%clk 0:09:37]} 3... cxd4 {[%clk 0:10:02.6]}
4. Nxd4 {[%clk 0:09:38]} 4... Nf6 {[%clk 0:10:04]} 5. Nc3 {[%clk 0:09:39.4]}
5... a6 {[%clk 0:10:05.2]} 6. b3 {[%clk 0:09:36]} 6... e5 {[%clk 0:10:00.3]} 7.
Nde2 {[%clk 0:09:32.5]} 7... Be6 {[%clk 0:09:54.7]} 8. f4 {[%clk 0:09:19.7]}
8... exf4 {[%clk 0:09:53]} 9. Nxf4 {[%clk 0:09:16.4]} 9... Nbd7 {[%clk
0:09:01.5]} 10. Nxe6 {[%clk 0:08:46.9]} 10... fxe6 {[%clk 0:08:58.2]} 11. Bc4
{[%clk 0:08:45]} 11... Qa5 {[%clk 0:08:46.8]} 12. Bd2 {[%clk 0:08:36.1]} 12...
Qe5 {[%clk 0:08:45.5]} 13. O-O {[%clk 0:08:28]} 13... Nxe4 {[%clk 0:06:40.6]}
14. Nxe4 {[%clk 0:08:14.6]} 14... Qxe4 {[%clk 0:06:40.4]} 15. Kh1 {[%clk
0:07:59.7]} 15... d5 {[%clk 0:06:27.2]} 16. Re1 {[%clk 0:07:33.4]} 16... Qf5
{[%clk 0:05:58.4]} 17. Bd3 {[%clk 0:07:33.6]} 17... Qf7 {[%clk 0:05:52.2]} 18.
Qg4 {[%clk 0:07:25.6]} 18... e5 {[%clk 0:05:03.3]} 19. Bf5 {[%clk 0:07:16.8]}
19... Bd6 {[%clk 0:05:01]} 20. Be6 {[%clk 0:07:08.7]} 20... Qe7 {[%clk
0:04:49.9]} 21. Bxd5 {[%clk 0:07:00.1]} 21... Nf6 {[%clk 0:04:49.9]} 22. Qa4+
{[%clk 0:06:52.1]} 22... b5 {[%clk 0:04:35.8]} 23. Bc6+ {[%clk 0:06:52]} 23...
Kf7 {[%clk 0:04:34.5]} 24. Qa5 {[%clk 0:06:32.2]} 24... Ra7 {[%clk 0:03:58.8]}
25. a4 {[%clk 0:06:03.4]} 25... Rc8 {[%clk 0:03:08]} 26. axb5 {[%clk 0:06:01.8]}
26... axb5 {[%clk 0:03:07.9]} 27. Qxa7 {[%clk 0:05:58.2]} 27... Rxc6 {[%clk
0:03:04.1]} 28. Qxe7+ {[%clk 0:05:55.2]} 28... Kxe7 {[%clk 0:03:06]} 29. Rac1
{[%clk 0:05:50.4]} 29... Ba3 {[%clk 0:02:52.3]} 30. Rxe5+ {[%clk 0:05:38.6]}
30... Kd6 {[%clk 0:02:47]} 31. Rce1 {[%clk 0:05:34.1]} 31... Rxc2 {[%clk
0:02:46.2]} 32. Bf4 {[%clk 0:05:32.2]} 32... Kd7 {[%clk 0:02:18.3]} 33. Rxb5
{[%clk 0:05:23.3]} 33... Rf2 {[%clk 0:02:18.3]} 34. Bg3 {[%clk 0:05:21.4]} 34...
Rd2 {[%clk 0:02:15.7]} 35. Rb7+ {[%clk 0:05:20.2]} 35... Kc6 {[%clk 0:02:15]}
36. Rxg7 {[%clk 0:05:19.8]} 36... Bb4 {[%clk 0:01:37.4]} 37. h3 {[%clk
0:05:08.5]} 37... Rd3 {[%clk 0:01:35.9]} 38. Re6+ {[%clk 0:05:04.7]} 1-0

[Event "GrandPrix_29.05"]
[Site "Chess.com"]
[Date "2020.05.29"]
[Round "6"]
[White "SergeyVashchilov"]
[Black "Todorovic1991"]
[Result "1/2-1/2"]
[WhiteElo "2068"]
[BlackElo "1812"]
[TimeControl "600+2"]
[EndTime "11:56:03 PDT"]
[Termination "Game drawn by repetition"]

1. e4 {[%clk 0:10:01.9]} 1... d6 {[%clk 0:10:00.1]} 2. d4 {[%clk 0:10:02.6]}
2... Nf6 {[%clk 0:10:00.8]} 3. Nc3 {[%clk 0:10:03.6]} 3... g6 {[%clk 0:10:01.5]}
4. Nge2 {[%clk 0:10:04]} 4... Bg7 {[%clk 0:10:02.1]} 5. g3 {[%clk 0:10:04.9]}
5... O-O {[%clk 0:10:02.4]} 6. Bg2 {[%clk 0:10:05.9]} 6... Nbd7 {[%clk
0:10:03.4]} 7. O-O {[%clk 0:10:06.4]} 7... c5 {[%clk 0:10:04.3]} 8. h3 {[%clk
0:10:03.1]} 8... Rb8 {[%clk 0:10:05.1]} 9. a4 {[%clk 0:10:01.2]} 9... b6 {[%clk
0:10:05.9]} 10. Be3 {[%clk 0:09:55.5]} 10... cxd4 {[%clk 0:10:05.6]} 11. Bxd4
{[%clk 0:09:53.7]} 11... Bb7 {[%clk 0:10:06.2]} 12. Nd5 {[%clk 0:09:24.8]} 12...
e6 {[%clk 0:10:05.2]} 13. Nxf6+ {[%clk 0:08:41.3]} 13... Nxf6 {[%clk 0:10:04.8]}
14. Qd3 {[%clk 0:08:40.4]} 14... Qc7 {[%clk 0:09:59.2]} 15. c4 {[%clk
0:08:11.7]} 15... Rbc8 {[%clk 0:09:47.7]} 16. Rac1 {[%clk 0:08:00.9]} 16... Bc6
{[%clk 0:08:54.5]} 17. b3 {[%clk 0:07:59.2]} 17... Qb7 {[%clk 0:08:54.4]} 18.
Nc3 {[%clk 0:07:33.6]} 18... a6 {[%clk 0:08:47.1]} 19. Rfe1 {[%clk 0:06:30.5]}
19... Rfd8 {[%clk 0:08:43.2]} 20. g4 {[%clk 0:05:30]} 20... Ne8 {[%clk
0:07:59.3]} 21. Bxg7 {[%clk 0:05:24.5]} 21... Kxg7 {[%clk 0:08:00.2]} 22. g5
{[%clk 0:05:13.9]} 22... Nc7 {[%clk 0:07:51.5]} 23. h4 {[%clk 0:04:34.6]} 23...
b5 {[%clk 0:07:31.6]} 24. h5 {[%clk 0:04:26.5]} 24... b4 {[%clk 0:07:11.3]} 25.
Nd5 {[%clk 0:04:18]} 25... Bxd5 {[%clk 0:06:53.9]} 26. h6+ {[%clk 0:04:10.9]}
26... Kg8 {[%clk 0:06:51.9]} 27. exd5 {[%clk 0:03:58.2]} 27... e5 {[%clk
0:06:51.8]} 28. c5 {[%clk 0:03:59.5]} 28... Ne8 {[%clk 0:06:47.8]} 29. c6 {[%clk
0:04:00.2]} 29... Qe7 {[%clk 0:06:43.4]} 30. Qd2 {[%clk 0:03:45.1]} 30... f5
{[%clk 0:06:36.7]} 31. f4 {[%clk 0:03:37.8]} 31... a5 {[%clk 0:06:25.1]} 32. Qe3
{[%clk 0:03:32.2]} 32... e4 {[%clk 0:06:20.2]} 33. Qd4 {[%clk 0:03:15.9]} 33...
Nc7 {[%clk 0:06:03.7]} 34. Re3 {[%clk 0:02:43.1]} 34... Re8 {[%clk 0:06:02.1]}
35. Rd1 {[%clk 0:02:37.3]} 35... Qf7 {[%clk 0:05:52.7]} 36. Bf1 {[%clk
0:02:28.3]} 36... Ra8 {[%clk 0:05:45.7]} 37. Qb6 {[%clk 0:02:13.7]} 37... Reb8
{[%clk 0:05:39.4]} 38. Qd4 {[%clk 0:02:12.5]} 38... Re8 {[%clk 0:05:33.2]} 39.
Kh2 {[%clk 0:02:02.2]} 39... Qe7 {[%clk 0:05:17.8]} 40. Kg3 {[%clk 0:02:01.3]}
40... Qf7 {[%clk 0:05:17.7]} 41. Bg2 {[%clk 0:01:58.1]} 41... Qe7 {[%clk
0:05:13.7]} 42. Bf1 {[%clk 0:01:45.4]} 42... Qf7 {[%clk 0:05:13.4]} 43. Qb6
{[%clk 0:01:46.2]} 43... Reb8 {[%clk 0:05:11.7]} 44. Qd4 {[%clk 0:01:46.9]}
44... Re8 {[%clk 0:05:12.2]} 1/2-1/2

[Event "GrandPrix_29.05"]
[Site "Chess.com"]
[Date "2020.05.29"]
[Round "6"]
[White "Velis23"]
[Black "Saqo007"]
[Result "0-1"]
[WhiteElo "2063"]
[BlackElo "2097"]
[TimeControl "600+2"]
[EndTime "11:56:12 PDT"]
[Termination "Saqo007 won by resignation"]

1. d4 {[%clk 0:09:59.8]} 1... d5 {[%clk 0:10:00.6]} 2. Bf4 {[%clk 0:09:59.2]}
2... Nf6 {[%clk 0:10:00.7]} 3. e3 {[%clk 0:09:59.8]} 3... e6 {[%clk 0:10:01.5]}
4. Nd2 {[%clk 0:09:58.7]} 4... Be7 {[%clk 0:10:00.3]} 5. Bd3 {[%clk 0:09:56.9]}
5... b6 {[%clk 0:10:00.8]} 6. c3 {[%clk 0:09:57.5]} 6... Bb7 {[%clk 0:10:02]} 7.
Ngf3 {[%clk 0:09:56.7]} 7... O-O {[%clk 0:10:02.4]} 8. h3 {[%clk 0:09:56]} 8...
Ne4 {[%clk 0:10:02.4]} 9. O-O {[%clk 0:09:55.6]} 9... Nd7 {[%clk 0:10:01.1]} 10.
Ne5 {[%clk 0:09:55.1]} 10... f6 {[%clk 0:10:01]} 11. Nxd7 {[%clk 0:09:44.1]}
11... Qxd7 {[%clk 0:10:02.9]} 12. Nxe4 {[%clk 0:09:34.3]} 12... dxe4 {[%clk
0:10:02.3]} 13. Bc4 {[%clk 0:09:35.6]} 13... Bd5 {[%clk 0:10:02.1]} 14. Be2
{[%clk 0:09:36.2]} 14... g5 {[%clk 0:09:58.2]} 15. Bg3 {[%clk 0:09:35.5]} 15...
f5 {[%clk 0:09:58.5]} 16. Be5 {[%clk 0:09:35.3]} 16... Bd6 {[%clk 0:09:55]} 17.
f4 {[%clk 0:09:26.9]} 17... exf3 {[%clk 0:09:45.1]} 18. Bxf3 {[%clk 0:09:10.7]}
18... Bxe5 {[%clk 0:09:39.6]} 19. dxe5 {[%clk 0:09:10.9]} 19... Rad8 {[%clk
0:09:40.2]} 20. Qe1 {[%clk 0:09:00.7]} 20... Bxf3 {[%clk 0:09:25.3]} 21. gxf3
{[%clk 0:08:51.7]} 21... Qg7 {[%clk 0:09:18]} 22. Qg3 {[%clk 0:08:50.9]} 22...
f4 {[%clk 0:09:17.7]} 23. exf4 {[%clk 0:08:50.2]} 23... gxf4 {[%clk 0:09:18.6]}
24. Qxg7+ {[%clk 0:08:50.1]} 24... Kxg7 {[%clk 0:09:20.5]} 25. Rad1 {[%clk
0:08:41.8]} 25... Kg6 {[%clk 0:09:20.2]} 26. Rd4 {[%clk 0:08:39.4]} 26... c5
{[%clk 0:09:11.9]} 27. Rd6 {[%clk 0:08:35.7]} 27... Kf5 {[%clk 0:09:07.4]} 28.
Rfd1 {[%clk 0:08:32.7]} 28... Rxd6 {[%clk 0:09:08]} 29. exd6 {[%clk 0:08:32.5]}
29... Rd8 {[%clk 0:09:09.2]} 30. d7 {[%clk 0:08:32.8]} 30... Kf6 {[%clk
0:09:06.2]} 31. Kf2 {[%clk 0:08:00.4]} 31... Ke7 {[%clk 0:09:01.7]} 32. Ke2
{[%clk 0:08:01.8]} 32... Rxd7 {[%clk 0:08:47.2]} 33. Rg1 {[%clk 0:08:02.3]}
33... Kf6 {[%clk 0:08:45.2]} 34. Rg8 {[%clk 0:08:01.3]} 34... Rg7 {[%clk
0:08:40]} 35. Rf8+ {[%clk 0:07:45.5]} 35... Ke5 {[%clk 0:08:34.8]} 36. Ra8
{[%clk 0:07:45.3]} 36... c4 {[%clk 0:08:33.9]} 37. Kf2 {[%clk 0:07:43.9]} 37...
Rd7 {[%clk 0:07:22.3]} 38. Ke2 {[%clk 0:07:41.8]} 38... Kf6 {[%clk 0:07:16.8]}
39. Rf8+ {[%clk 0:07:32.6]} 39... Rf7 {[%clk 0:07:16.9]} 40. Re8 {[%clk
0:07:26.3]} 40... e5 {[%clk 0:07:15]} 41. Rc8 {[%clk 0:07:25.6]} 41... b5 {[%clk
0:07:09.4]} 42. Rc6+ {[%clk 0:07:05.6]} 42... Kf5 {[%clk 0:07:08.8]} 43. Rc5
{[%clk 0:07:06]} 43... Rb7 {[%clk 0:07:03.3]} 44. a3 {[%clk 0:07:01.6]} 44... a5
{[%clk 0:06:57.8]} 45. Kf2 {[%clk 0:06:47.4]} 45... b4 {[%clk 0:06:43.3]} 46.
axb4 {[%clk 0:06:42]} 46... axb4 {[%clk 0:06:44.3]} 47. Rxc4 {[%clk 0:06:38.9]}
47... bxc3 {[%clk 0:06:45.4]} 48. bxc3 {[%clk 0:06:40.3]} 48... Rb2+ {[%clk
0:06:47]} 49. Kg1 {[%clk 0:06:39.9]} 49... Kg5 {[%clk 0:06:48.5]} 50. Rc5 {[%clk
0:06:30.1]} 50... Kh4 {[%clk 0:06:49]} 51. Rxe5 {[%clk 0:06:30.1]} 51... Kxh3
{[%clk 0:06:41.5]} 52. Rg5 {[%clk 0:06:23.3]} 52... Rc2 {[%clk 0:06:41.2]} 53.
Rg4 {[%clk 0:06:20.2]} 53... h5 {[%clk 0:06:41.4]} 54. Rg5 {[%clk 0:06:08.4]}
54... Kh4 {[%clk 0:06:41.8]} 55. Rf5 {[%clk 0:06:01.1]} 55... Kg3 {[%clk
0:06:41.9]} 56. Rg5+ {[%clk 0:06:01.9]} 56... Kxf3 {[%clk 0:06:41.7]} 57. Rxh5
{[%clk 0:06:02.6]} 57... Kg4 {[%clk 0:06:08.6]} 58. Rc5 {[%clk 0:05:57.3]} 58...
Kf3 {[%clk 0:05:40.8]} 59. Rc8 {[%clk 0:05:07.3]} 59... Rc1+ {[%clk 0:05:31.4]}
60. Kh2 {[%clk 0:05:07.2]} 60... Ke2 {[%clk 0:05:28.5]} 61. Rd8 {[%clk
0:04:45.1]} 61... Rxc3 {[%clk 0:05:21.6]} 62. Rf8 {[%clk 0:04:17.2]} 62... f3
{[%clk 0:04:40]} 63. Kg3 {[%clk 0:04:14.5]} 63... Re3 {[%clk 0:04:41.5]} 64. Rf4
{[%clk 0:04:00.9]} 64... Re8 {[%clk 0:04:36]} 65. Rxf3 {[%clk 0:03:56.8]} 65...
Rg8+ {[%clk 0:04:35.8]} 66. Kf4 {[%clk 0:03:57.8]} 66... Rf8+ {[%clk 0:04:36.7]}
67. Ke4 {[%clk 0:03:58.9]} 67... Rxf3 {[%clk 0:04:38.6]} 0-1